fUST/lending_fUST_20240424
["ID","MTS","AMOUNT","RATE_DAILY","PERIOD"]
[323376249,1713943840886,-500.0,0.00016438,2]
[323376250,1713943840895,-424.82908857,0.00016438,2]
[323376251,1713943840904,-702.47,0.00016438,2]
[323376252,1713943840914,-500.79984815,0.00016438,2]
[323376253,1713943840923,-500.0,0.00016438,2]
[323376254,1713943840932,-500.0,0.00016438,2]
[323376255,1713943840941,-500.0,0.00016438,2]
[323376256,1713943840950,-500.66767919,0.00016438,2]
[323376257,1713943840959,-500.0,0.00016438,2]
[323376258,1713943840968,-2997.68,0.00016438,2]
[323376259,1713943840977,-500.0,0.00016438,2]
[323376260,1713943840986,-1549.48,0.00016438,2]
[323376261,1713943840995,-500.63077636,0.00016438,2]
[323376262,1713943841004,-500.0,0.00016438,2]
[323376263,1713943841013,-507.7455405,0.00016438,2]
[323376264,1713943841023,-502.18138017,0.00016438,2]
[323376265,1713943841033,-500.0,0.00016438,2]
[323376266,1713943841042,-509.54472222,0.00016438,2]
[323376267,1713943841051,-500.0,0.00016438,2]
[323376268,1713943841061,-500.0,0.00016438,2]
[323376269,1713943841071,-500.0,0.00016438,2]
[323376270,1713943841080,-500.0,0.00016438,2]
[323376271,1713943841090,-632.3669574,0.00016438,2]
[323376272,1713943841099,-1151.2,0.00016438,2]
[323376273,1713943841108,-500.0,0.00016438,2]
[323376274,1713943841117,-500.0,0.00016438,2]
[323376275,1713943841126,-500.0,0.00016438,2]
[323376276,1713943841135,-500.0,0.00016438,2]
[323376277,1713943841144,-1289.89,0.00016438,2]
[323376278,1713943841153,-500.0,0.00016438,2]
[323376279,1713943841163,-500.0,0.00016438,2]
[323376280,1713943841172,-500.0,0.00016438,2]
[323376281,1713943841182,-500.0,0.00016438,2]
[323376282,1713943841190,-500.0,0.00016438,2]
[323376283,1713943841199,-505.59078504,0.00016438,2]
[323376284,1713943841208,-500.0,0.00016438,2]
[323376285,1713943841217,-500.0,0.00016438,2]
[323376286,1713943841228,-500.28860774,0.00016438,2]
[323376287,1713943841237,-500.0,0.00016438,2]
[323376288,1713943841246,-186.66324189,0.00016438,2]
[323376289,1713943841255,-500.0,0.00016438,2]
[323376290,1713943841264,-500.0,0.00016438,2]
[323376291,1713943841273,-500.0,0.00016438,2]
[323376292,1713943841285,-508.89738172,0.00016438,2]
[323376293,1713943841294,-500.0,0.00016438,2]
[323376294,1713943841304,-904.09,0.00016438,2]
[323376295,1713943841314,-500.0,0.00016438,2]
[323376296,1713943841323,-199.37054614,0.00016438,2]
[323376297,1713943842054,-304.14811982,0.00016438,2]
[323376298,1713943842064,-500.30422608,0.00016438,2]
[323376299,1713943842074,-310.42600251,0.00016438,2]
[323376300,1713943842084,-611.61229877,0.00016438,2]
[323376301,1713943842094,-500.0,0.00016438,2]
[323376302,1713943842104,-500.0,0.00016438,2]
[323376303,1713943842114,-829.83,0.00016438,2]
[323376304,1713943842124,-500.0,0.00016438,2]
[323376305,1713943842134,-500.0,0.00016438,2]
[323376306,1713943842143,-500.0,0.00016438,2]
[323376307,1713943842306,-500.0,0.00016438,2]
[323376308,1713943842316,-500.0,0.00016438,2]
[323376309,1713943842325,-1544.4,0.00016438,2]
[323376310,1713943842336,-500.0,0.00016438,2]
[323376311,1713943842345,-500.0,0.00016438,2]
[323376312,1713943842355,-500.0,0.00016438,2]
[323376313,1713943842364,-500.0,0.00016438,2]
[323376314,1713943842374,-500.0,0.00016438,2]
[323376315,1713943842384,-1309.06,0.00016438,2]
[323376316,1713943842393,-592.64,0.00016438,2]
[323376317,1713943842403,-966.79070282,0.00016438,2]
[323376318,1713943842417,-1289.00929718,0.00016438,2]
[323376319,1713943842427,-500.0,0.00016438,2]
[323376320,1713943842436,-508.96,0.00016438,2]
[323376321,1713943842446,-500.33849054,0.00016438,2]
[323376322,1713943842457,-500.0,0.00016438,2]
[323376323,1713943842467,-500.0,0.00016438,2]
[323376324,1713943842476,-500.0,0.00016438,2]
[323376325,1713943842486,-500.0,0.00016438,2]
[323376326,1713943842497,-500.0,0.00016438,2]
[323376327,1713943842506,-500.0,0.00016438,2]
[323376328,1713943842515,-500.0,0.00016438,2]
[323376329,1713943842526,-500.0,0.00016438,2]
[323376330,1713943842536,-500.0,0.00016438,2]
[323376331,1713943842546,-500.0,0.00016438,2]
[323376332,1713943842556,-500.0,0.00016438,2]
[323376333,1713943842567,-555.29581383,0.00016438,2]
[323376334,1713943842577,-1969.29,0.00016438,2]
[323376335,1713943842586,-500.0,0.00016438,2]
[323376336,1713943842595,-500.0,0.00016438,2]
[323376337,1713943842605,-500.0,0.00016438,2]
[323376338,1713943842615,-499.84982341,0.00016438,2]
[323376339,1713943842758,-0.15017659,0.00016438,2]
[323376340,1713943842768,-500.0,0.00016438,2]
[323376341,1713943842777,-23.40798118,0.00016438,2]
[323376409,1713943846677,-476.59201882,0.00016438,2]
[323376410,1713943846687,-513.49238337,0.00016438,2]
[323376411,1713943846696,-198.9656364,0.00016438,2]
[323376412,1713943846705,-500.0,0.00016438,2]
[323376414,1713943846714,-500.0,0.00016438,2]
[323376415,1713943846723,-500.0,0.00016438,2]
[323376416,1713943846731,-500.0,0.00016438,2]
[323376417,1713943846740,-623.74,0.00016438,2]
[323376418,1713943846749,-500.0,0.00016438,2]
[323376419,1713943846758,-500.0,0.00016438,2]
[323376420,1713943846767,-910.66,0.00016438,2]
[323376421,1713943846776,-727.22,0.00016438,2]
[323376422,1713943846786,-500.0,0.00016438,2]
[323376423,1713943846794,-878.62,0.00016438,2]
[323376424,1713943846803,-500.0,0.00016438,2]
[323376425,1713943846813,-500.0,0.00016438,2]
[323376426,1713943846822,-500.0,0.00016438,2]
[323376427,1713943846832,-500.0,0.00016438,2]
[323376428,1713943846843,-500.0,0.00016438,2]
[323376429,1713943846852,-500.0,0.00016438,2]
[323376430,1713943846861,-500.0,0.00016438,2]
[323376431,1713943846871,-500.0,0.00016438,2]
[323376432,1713943846879,-500.0,0.00016438,2]
[323376433,1713943846888,-730.69,0.00016438,2]
[323376434,1713943846897,-500.0,0.00016438,2]
[323376435,1713943846906,-513.22901312,0.00016438,2]
[323376436,1713943846916,-500.0,0.00016438,2]
[323376437,1713943846925,-500.0,0.00016438,2]
[323376438,1713943846934,-500.0,0.00016438,2]
[323376439,1713943846943,-151.0,0.00016438,2]
[323376440,1713943846952,-228.63506504,0.00016438,2]
[323376441,1713943846960,-500.0,0.00016438,2]
[323376442,1713943846970,-500.0,0.00016438,2]
[323376443,1713943846978,-500.0,0.00016438,2]
[323376444,1713943846987,-484.34172029,0.00016438,2]
[323376445,1713943846997,-913.02,0.00016438,2]
[323376446,1713943847007,-913.02,0.00016438,2]
[323376447,1713943847017,-913.02,0.00016438,2]
[323376448,1713943847027,-913.02,0.00016438,2]
[323376449,1713943847038,-913.02,0.00016438,2]
[323376450,1713943847047,-913.02,0.00016438,2]
[323376451,1713943847058,-913.02,0.00016438,2]
[323376452,1713943847067,-913.02,0.00016438,2]
[323376453,1713943847076,-188.52681513,0.00016438,2]
[323376454,1713943847085,-913.02,0.00016438,2]
[323376455,1713943847094,-913.02,0.00016438,2]
[323376456,1713943847103,-913.02,0.00016438,2]
[323376457,1713943847113,-913.02,0.00016438,2]
[323376458,1713943847122,-913.02,0.00016438,2]
[323376459,1713943847131,-913.02,0.00016438,2]
[323376460,1713943847140,-913.02,0.00016438,2]
[323376461,1713943847150,-500.0,0.00016438,2]
[323376462,1713943847159,-913.02,0.00016438,2]
[323376463,1713943847168,-500.0,0.00016438,2]
[323376464,1713943847177,-913.02,0.00016438,2]
[323376465,1713943847187,-913.02,0.00016438,2]
[323376466,1713943847197,-500.0,0.00016438,2]
[323376467,1713943847206,-500.0,0.00016438,2]
[323376468,1713943847215,-621.49714436,0.00016438,2]
[323376469,1713943847224,-500.0,0.00016438,2]
[323376470,1713943847233,-500.0,0.00016438,2]
[323376471,1713943847242,-500.0,0.00016438,2]
[323376472,1713943847251,-500.0,0.00016438,2]
[323376473,1713943847260,-382.42565676,0.00016438,2]
[323376474,1713943847269,-500.0,0.00016438,2]
[323376475,1713943847278,-500.0,0.00016438,2]
[323376476,1713943847288,-500.0,0.00016438,2]
[323376477,1713943847298,-311.72258674,0.00016438,2]
[323376478,1713943847307,-500.0,0.00016438,2]
[323376479,1713943847317,-500.0,0.00016438,2]
[323376480,1713943847325,-500.0,0.00016438,2]
[323376481,1713943847334,-500.0,0.00016438,2]
[323376482,1713943847344,-500.0,0.00016438,2]
[323376483,1713943847353,-500.0,0.00016438,2]
[323376484,1713943847362,-500.0,0.00016438,2]
[323376485,1713943847371,-1937.62,0.00016438,2]
[323376486,1713943847381,-500.0,0.00016438,2]
[323376487,1713943847390,-1619.59,0.00016438,2]
[323376488,1713943847400,-500.0,0.00016438,2]
[323376489,1713943847409,-1078.88,0.00016438,2]
[323376490,1713943847418,-500.0,0.00016438,2]
[323376491,1713943847428,-500.0,0.00016438,2]
[323376492,1713943847437,-184.16387975,0.00016438,2]
[323376493,1713943847446,-500.0,0.00016438,2]
[323376494,1713943847454,-500.0,0.00016438,2]
[323376495,1713943847463,-439.44795707,0.00016438,2]
[323376496,1713943847473,-505.98749903,0.00016438,2]
[323376497,1713943847482,-500.0,0.00016438,2]
[323376498,1713943847491,-500.0,0.00016438,2]
[323376499,1713943847500,-181.10246799,0.00016438,2]
[323376500,1713943847509,-498.50789859,0.00016438,2]
[323376501,1713943847518,-582.17,0.00016438,2]
[323376502,1713943847527,-500.0,0.00016438,2]
[323376503,1713943847538,-500.0,0.00016438,2]
[323376504,1713943847547,-500.0,0.00016438,2]
[323376505,1713943847556,-2288.05,0.00016438,2]
[323376506,1713943847565,-500.0,0.00016438,2]
[323376507,1713943847574,-500.0,0.00016438,2]
[323376508,1713943847583,-500.0,0.00016438,2]
[323376509,1713943847593,-1748.85,0.00016438,2]
[323376510,1713943847602,-500.0,0.00016438,2]
[323376511,1713943847611,-500.0,0.00016438,2]
[323376512,1713943847620,-500.0,0.00016438,2]
[323376513,1713943847629,-500.0,0.00016438,2]
[323376514,1713943847637,-500.0,0.00016438,2]
[323376515,1713943847647,-500.0,0.00016438,2]
[323376516,1713943847656,-500.0,0.00016438,2]
[323376517,1713943847665,-500.0,0.00016438,2]
[323376518,1713943847674,-500.0,0.00016438,2]
[323376519,1713943847683,-740.96,0.00016438,2]
[323376520,1713943847692,-500.0,0.00016438,2]
[323376521,1713943847701,-500.0,0.00016438,2]
[323376522,1713943847711,-500.0,0.00016438,2]
[323376523,1713943847720,-500.0,0.00016438,2]
[323376524,1713943847729,-501.70370906,0.00016438,2]
[323376525,1713943847738,-500.0,0.00016438,2]
[323376526,1713943847747,-500.0,0.00016438,2]
[323376527,1713943847756,-500.0,0.00016438,2]
[323376528,1713943847765,-500.0,0.00016438,2]
[323376529,1713943847784,-500.0,0.00016438,2]
[323376530,1713943847794,-500.0,0.00016438,2]
[323376531,1713943847803,-500.0,0.00016438,2]
[323376532,1713943847812,-500.0,0.00016438,2]
[323376533,1713943847822,-500.0,0.00016438,2]
[323376534,1713943847831,-500.0,0.00016438,2]
[323376535,1713943847842,-6008.019106,0.00016438,2]
[323376536,1713943847851,-151.0,0.00016438,2]
[323376537,1713943847860,-500.0,0.00016438,2]
[323376538,1713943847869,-500.0,0.00016438,2]
[323376539,1713943847878,-500.0,0.00016438,2]
[323376540,1713943847888,-500.0,0.00016438,2]
[323376541,1713943847897,-500.0,0.00016438,2]
[323376542,1713943847906,-500.0,0.00016438,2]
[323376543,1713943847917,-215.545038,0.00016438,2]
[323376544,1713943847926,-976.94,0.00016438,2]
[323376545,1713943847935,-506.05723835,0.00016438,2]
[323376546,1713943847945,-500.0,0.00016438,2]
[323376547,1713943847954,-500.0,0.00016438,2]
[323376548,1713943847963,-307.39805839,0.00016438,2]
[323376549,1713943847972,-500.0,0.00016438,2]
[323376550,1713943847982,-500.0,0.00016438,2]
[323376551,1713943847991,-500.0,0.00016438,2]
[323376552,1713943848000,-500.0,0.00016438,2]
[323376553,1713943848009,-500.0,0.00016438,2]
[323376554,1713943848018,-950.78,0.00016438,2]
[323376555,1713943848027,-694.28,0.00016438,2]
[323376556,1713943848038,-767.09,0.00016438,2]
[323376557,1713943848048,-10650.19,0.00016438,2]
[323376558,1713943848058,-500.0,0.00016438,2]
[323376559,1713943848068,-236.4521685,0.00016438,2]
[323376560,1713943848078,-2429.53,0.00016438,2]
[323376561,1713943848086,-1953.8,0.00016438,2]
[323376562,1713943848097,-500.0,0.00016438,2]
[323376563,1713943848107,-500.0,0.00016438,2]
[323376564,1713943848248,-380.95647089,0.00016438,2]
[323376565,1713943893515,499999.780001,0.00025,30]
[323376634,1713945037777,-1575.31939472,0.00013675,2]
[323376635,1713945037787,-59169.7357574,0.00013675,2]
[323376636,1713945037796,-3628.33644596,0.00013676,2]
[323376637,1713945037806,-32146.14083664,0.00013676,2]
[323376638,1713945037816,-300.0,0.00013676,2]
[323376639,1713945037825,-300.0,0.00013676,2]
[323376640,1713945037834,-19237.94800681,0.00013697,2]
[323376641,1713945037844,-2630.335812,0.00013699,2]
[323376642,1713945037853,-31181.45436855,0.00013699,2]
[323376705,1713946231996,-173.25526101,0.00013369,2]
[323376706,1713946232007,-1575.31939472,0.00013369,2]
[323376707,1713946232016,-3628.33644596,0.0001337,2]
[323376709,1713946232025,-1158.46136537,0.00013372,2]
[323376711,1713946232036,-167.43878573,0.00013481,2]
[323376712,1713946232045,-188.84787867,0.0001359,2]
[323376713,1713946232055,-300.0,0.0001359,2]
[323376714,1713946232064,-300.0,0.0001359,2]
[323376715,1713946232073,-4115.37058553,0.00013591,2]
[323376716,1713946232115,-7006.74770648,0.00013591,2]
[323376751,1713946238166,-1147.43259521,0.00013589,2]
[323376752,1713946238177,-1305.97171123,0.00013589,2]
[323376753,1713946238187,-4345.26825372,0.00013591,2]
[323376815,1713946646698,1000.0,0.00022,23]
[323376817,1713947009641,-1890.36328834,0.00012435,2]
[323376818,1713947009666,-1575.31939472,0.00012436,2]
[323376819,1713947009690,-520.05301281,0.00012437,2]
[323376820,1713947009715,-520.05301281,0.00012437,2]
[323376821,1713947009741,-154.81422293,0.00012438,2]
[323376822,1713947009767,-861.6726824,0.00012698,2]
[323376823,1713947009791,-918.6272854,0.00013272,2]
[323376824,1713947009813,-300.0,0.00013588,2]
[323376825,1713947009841,-300.0,0.00013588,2]
[323376826,1713947009865,-18751.09710059,0.00013589,2]
[323376859,1713947432220,-1095.77349914,0.00013385,2]
[323376861,1713947432230,-1890.36328834,0.0001348,2]
[323376862,1713947432239,-1575.31939472,0.00013481,2]
[323376865,1713947432248,-300.0,0.00013487,2]
[323376867,1713947432257,-300.0,0.00013487,2]
[323376869,1713947432266,-20000.037401,0.00013488,2]
[323376872,1713947432276,-249.72997256,0.00013488,2]
[323376875,1713947432285,-729.48680207,0.00013589,2]
[323376878,1713947432294,-881.58195889,0.0001359,2]
[323376880,1713947432303,-24532.64582564,0.0001359,2]
[323376988,1713948306608,806.20195601,0.00025,30]
[323377091,1713948643549,-365.000015,0.00013487,2]
[323377092,1713948643602,-1525.36327334,0.00013487,2]
[323377093,1713948643613,-1575.31939472,0.00013487,2]
[323377094,1713948643622,-300.0,0.00013487,2]
[323377095,1713948643631,-300.0,0.00013487,2]
[323377097,1713948643640,-581.51147044,0.00013488,2]
[323377237,1713949832505,-154.84515485,0.00013435,2]
[323377238,1713949832514,-682.81356657,0.00013436,2]
[323377252,1713949838861,-1575.31939472,0.00013433,2]
[323377253,1713949838871,-549.6120096,0.00013434,2]
[323377254,1713949838880,-1207.54972177,0.00013436,2]
[323377255,1713949838891,-300.0,0.00013487,2]
[323377256,1713949838900,-300.0,0.00013487,2]
[323377257,1713949838910,-387.10092515,0.00013488,2]
[323377258,1713949838919,-16087.28363851,0.00013488,2]
[323377259,1713949838929,-153.43131252,0.00013562,2]
[323377260,1713949838938,-287.3440077,0.00013589,2]
[323377261,1713949838948,-8280.59858946,0.0001359,2]
[323377262,1713949838958,-743.74012457,0.00013697,2]
[323377263,1713949838967,-40658.1511933,0.00013699,2]
[323377264,1713949838976,-2767.2418592,0.00013699,2]
[323377265,1713949838986,-2891.741125,0.00013699,2]
[323377266,1713949838995,-927.87368973,0.00014,2]
[323377267,1713949839004,-851.50295752,0.000147,2]
[323377268,1713949839013,-420.0,0.00014783,2]
[323377269,1713949839022,-156.452408,0.000148,2]
[323377270,1713949839031,-281.473771,0.000148,2]
[323377271,1713949839040,-151.0,0.000148,2]
[323377272,1713949839049,-151.0,0.000148,2]
[323377273,1713949839058,-151.0,0.000148,2]
[323377274,1713949839067,-151.0,0.000148,2]
[323377275,1713949839076,-151.0,0.000148,2]
[323377276,1713949839085,-226.153105,0.000148,2]
[323377277,1713949839094,-199.386657,0.000148,2]
[323377278,1713949839103,-199.386657,0.000148,2]
[323377279,1713949839112,-199.386657,0.000148,2]
[323377280,1713949839121,-199.386657,0.000148,2]
[323377281,1713949839131,-199.386657,0.000148,2]
[323377282,1713949839141,-199.386657,0.000148,2]
[323377283,1713949839150,-151.0,0.000148,2]
[323377284,1713949839159,-151.0,0.000148,2]
[323377285,1713949839169,-151.0,0.000148,2]
[323377286,1713949839178,-151.0,0.000148,2]
[323377287,1713949839187,-151.0,0.000148,2]
[323377288,1713949839198,-151.0,0.000148,2]
[323377289,1713949839207,-151.0,0.000148,2]
[323377290,1713949839216,-151.0,0.000148,2]
[323377291,1713949839225,-975.851145,0.000148,2]
[323377292,1713949839234,-975.851145,0.000148,2]
[323377293,1713949839243,-975.851145,0.000148,2]
[323377294,1713949839252,-975.851145,0.000148,2]
[323377295,1713949839261,-975.851145,0.000148,2]
[323377296,1713949839270,-975.851145,0.000148,2]
[323377297,1713949839279,-203.6190757,0.000148,2]
[323377298,1713949839288,-151.0,0.000148,2]
[323377299,1713949839298,-151.0,0.000148,2]
[323377300,1713949839307,-151.0,0.000148,2]
[323377301,1713949839316,-151.0,0.000148,2]
[323377302,1713949839325,-151.0,0.000148,2]
[323377303,1713949839334,-156.220205,0.000148,2]
[323377304,1713949839343,-151.0,0.000148,2]
[323377305,1713949839352,-151.0,0.000148,2]
[323377306,1713949839361,-151.0,0.000148,2]
[323377307,1713949839370,-206.66753,0.000148,2]
[323377308,1713949839379,-203.6190757,0.000148,2]
[323377309,1713949839389,-151.0,0.000148,2]
[323377310,1713949839401,-151.0,0.000148,2]
[323377311,1713949839411,-151.0,0.000148,2]
[323377312,1713949839422,-151.0,0.000148,2]
[323377313,1713949839433,-151.0,0.000148,2]
[323377314,1713949839442,-151.0,0.000148,2]
[323377315,1713949839453,-151.0,0.000148,2]
[323377316,1713949839463,-151.0,0.000148,2]
[323377317,1713949839472,-151.0,0.000148,2]
[323377318,1713949839482,-151.0,0.000148,2]
[323377319,1713949839491,-151.0,0.000148,2]
[323377320,1713949839500,-151.0,0.000148,2]
[323377321,1713949839509,-151.0,0.000148,2]
[323377322,1713949839518,-151.0,0.000148,2]
[323377323,1713949839527,-155.855352,0.000148,2]
[323377324,1713949839537,-203.6190757,0.000148,2]
[323377325,1713949839546,-270.350188,0.000148,2]
[323377326,1713949839555,-270.350188,0.000148,2]
[323377327,1713949839563,-270.350188,0.000148,2]
[323377328,1713949839572,-270.350188,0.000148,2]
[323377329,1713949839581,-270.350188,0.000148,2]
[323377330,1713949839590,-270.350188,0.000148,2]
[323377331,1713949839599,-270.350188,0.000148,2]
[323377332,1713949839608,-270.350188,0.000148,2]
[323377333,1713949839617,-270.350188,0.000148,2]
[323377334,1713949839625,-153.0,0.000148,2]
[323377335,1713949839634,-270.350188,0.000148,2]
[323377336,1713949839643,-262.8773331,0.000148,2]
[323377337,1713949839652,-270.350188,0.000148,2]
[323377338,1713949839660,-203.6190757,0.000148,2]
[323377339,1713949839669,-270.350188,0.000148,2]
[323377340,1713949839678,-270.350188,0.000148,2]
[323377341,1713949839686,-270.350188,0.000148,2]
[323377342,1713949839694,-270.350188,0.000148,2]
[323377343,1713949839703,-270.350188,0.000148,2]
[323377344,1713949839712,-270.350188,0.000148,2]
[323377345,1713949839722,-270.350188,0.000148,2]
[323377346,1713949839731,-270.350188,0.000148,2]
[323377347,1713949839740,-270.350178,0.000148,2]
[323377348,1713949839749,-171.367417,0.000148,2]
[323377349,1713949839759,-171.367417,0.000148,2]
[323377350,1713949839768,-171.367417,0.000148,2]
[323377351,1713949839777,-171.367417,0.000148,2]
[323377352,1713949839786,-171.367417,0.000148,2]
[323377353,1713949839797,-171.367417,0.000148,2]
[323377354,1713949839806,-171.367417,0.000148,2]
[323377355,1713949839815,-171.367417,0.000148,2]
[323377356,1713949839824,-153.0,0.000148,2]
[323377357,1713949839833,-171.367417,0.000148,2]
[323377358,1713949839842,-171.367417,0.000148,2]
[323377359,1713949839850,-406.7269329,0.000148,2]
[323377360,1713949839859,-171.367417,0.000148,2]
[323377361,1713949839868,-171.367417,0.000148,2]
[323377362,1713949839877,-171.367417,0.000148,2]
[323377363,1713949839887,-171.367417,0.000148,2]
[323377364,1713949839898,-171.367417,0.000148,2]
[323377365,1713949839907,-171.367417,0.000148,2]
[323377366,1713949839916,-171.367417,0.000148,2]
[323377367,1713949839925,-171.367417,0.000148,2]
[323377368,1713949839934,-171.367417,0.000148,2]
[323377369,1713949839944,-171.367412,0.000148,2]
[323377370,1713949839957,-151.0,0.000148,2]
[323377371,1713949839967,-151.0,0.000148,2]
[323377373,1713949839976,-257.826796,0.000148,2]
[323377374,1713949839985,-151.0,0.000148,2]
[323377375,1713949839994,-151.0,0.000148,2]
[323377376,1713949840004,-151.0,0.000148,2]
[323377377,1713949840013,-151.0,0.000148,2]
[323377378,1713949840022,-151.0,0.000148,2]
[323377379,1713949840031,-151.0,0.000148,2]
[323377380,1713949840041,-151.0,0.000148,2]
[323377381,1713949840049,-151.0,0.000148,2]
[323377382,1713949840058,-296.270821,0.000148,2]
[323377383,1713949840068,-306.0,0.000148,2]
[323377386,1713949840238,-203.583665,0.000148,2]
[323377387,1713949840248,-153.0,0.000148,2]
[323377388,1713949840257,-203.6190757,0.000148,2]
[323377389,1713949840266,-153.0,0.000148,2]
[323377390,1713949840275,-153.0,0.000148,2]
[323377391,1713949840285,-203.6190757,0.000148,2]
[323377392,1713949840294,-6773.07404,0.000148,2]
[323377394,1713949840303,-6773.07404,0.000148,2]
[323377395,1713949840312,-6773.07404,0.000148,2]
[323377396,1713949840321,-6773.07404,0.000148,2]
[323377397,1713949840330,-6773.07404,0.000148,2]
[323377398,1713949840339,-6773.07404,0.000148,2]
[323377399,1713949840349,-6773.07404,0.000148,2]
[323377400,1713949840359,-6773.07404,0.000148,2]
[323377401,1713949840368,-6773.07404,0.000148,2]
[323377402,1713949840377,-151.0,0.000148,2]
[323377403,1713949840386,-152.171862,0.000148,2]
[323377404,1713949840397,-6773.07404,0.000148,2]
[323377405,1713949840406,-6773.07404,0.000148,2]
[323377406,1713949840415,-6773.07404,0.000148,2]
[323377407,1713949840424,-6773.07404,0.000148,2]
[323377408,1713949840433,-306.0,0.000148,2]
[323377409,1713949840443,-404.6053438,0.000148,2]
[323377410,1713949840452,-6773.07404,0.000148,2]
[323377411,1713949840461,-306.0,0.000148,2]
[323377412,1713949840470,-6773.07404,0.000148,2]
[323377413,1713949840479,-6773.07404,0.000148,2]
[323377414,1713949840489,-6773.07404,0.000148,2]
[323377415,1713949840498,-6773.07404,0.000148,2]
[323377416,1713949840508,-6773.07404,0.000148,2]
[323377417,1713949840517,-6773.074038,0.000148,2]
[323377418,1713949840526,-156.029954,0.000148,2]
[323377419,1713949840535,-306.0,0.000148,2]
[323377420,1713949840545,-407.16733,0.000148,2]
[323377421,1713949840554,-151.709696,0.000148,2]
[323377422,1713949840563,-203.6190757,0.000148,2]
[323377423,1713949840572,-153.0,0.000148,2]
[323377424,1713949840581,-306.0,0.000148,2]
[323377425,1713949840590,-203.6190757,0.000148,2]
[323377426,1713949840600,-151.0,0.000148,2]
[323377427,1713949840609,-151.0,0.000148,2]
[323377429,1713949840618,-151.0,0.000148,2]
[323377431,1713949840627,-151.0,0.000148,2]
[323377433,1713949840636,-151.0,0.000148,2]
[323377435,1713949840647,-151.0,0.000148,2]
[323377437,1713949840656,-151.0,0.000148,2]
[323377439,1713949840664,-151.0,0.000148,2]
[323377440,1713949840673,-151.0,0.000148,2]
[323377441,1713949840682,-1625.0,0.000148,2]
[323377442,1713949840691,-1625.0,0.000148,2]
[323377443,1713949840700,-1625.0,0.000148,2]
[323377444,1713949840709,-1625.0,0.000148,2]
[323377445,1713949840722,-1625.0,0.000148,2]
[323377446,1713949840731,-1625.0,0.000148,2]
[323377447,1713949840740,-1625.0,0.000148,2]
[323377448,1713949840750,-1625.0,0.000148,2]
[323377449,1713949840759,-1625.0,0.000148,2]
[323377450,1713949840769,-1625.0,0.000148,2]
[323377451,1713949840778,-1625.0,0.000148,2]
[323377452,1713949840788,-1625.0,0.000148,2]
[323377453,1713949840798,-1625.0,0.000148,2]
[323377454,1713949840807,-1625.0,0.000148,2]
[323377455,1713949840817,-431.8893093,0.000148,2]
[323377490,1713949843943,-153.43131253,0.00014651,2]
[323377491,1713949843952,-1193.1106907,0.000148,2]
[323377492,1713949843961,-1625.0,0.000148,2]
[323377493,1713949843970,-1625.0,0.000148,2]
[323377495,1713949843979,-1625.0,0.000148,2]